bitfinex-derivatives/quotes_BTCF0:USTF0_20241110
["timestamp","ask_amount","ask_price","bid_price","bid_amount"]
[1731216169029,0.01892001,79378.0,79366.0,0.06302]
[1731216170825,0.3608,79381.0,79368.0,0.06302]
[1731216171021,0.3608,79381.0,79373.0,0.06302]
[1731216172325,0.01892001,79386.0,79373.0,0.06302]
[1731216173230,0.3608,79381.0,79373.0,0.06302]
[1731216174526,0.61145564,79374.0,79367.0,0.06302]
[1731216174730,0.3608,79370.0,79367.0,0.06302]
[1731216175526,0.3608,79370.0,79356.0,0.06302]
[1731216175729,0.3608,79370.0,79358.0,0.06302]
[1731216176817,0.32298,79370.0,79357.0,0.06302]
[1731216177531,0.01892001,79369.0,79357.0,0.06302]
[1731216179231,0.03086233,79368.0,79357.0,0.06302]
[1731216179430,0.01892001,79369.0,79357.0,0.06302]
[1731216179627,0.3608,79363.0,79357.0,0.06302]
[1731216180332,0.3608,79360.0,79345.0,0.00064]
[1731216180534,0.3608,79355.0,79344.0,0.06311091]
[1731216180729,0.3608,79345.0,79344.0,0.06311091]
[1731216182637,0.3608,79345.0,79344.0,9.091e-05]
[1731216183335,0.3608,79355.0,79344.0,0.06311091]
[1731216183536,0.3608,79366.0,79352.0,0.06302]
[1731216183932,0.3183,79368.0,79352.0,0.06302]
[1731216184137,0.3183,79368.0,79359.0,0.06302]
[1731216184530,0.3608,79365.0,79359.0,0.06302]
[1731216186142,0.3183,79368.0,79359.0,0.06302]
[1731216186740,0.00189097,79371.0,79359.0,0.06302]
[1731216187042,0.00189097,79371.0,79361.0,0.06302]
[1731216187841,0.3608,79373.0,79361.0,0.06302]
[1731216188139,0.3608,79373.0,79360.0,0.8668]
[1731216188140,0.01892001,79380.0,79369.0,0.06302]
[1731216188342,0.01892001,79380.0,79376.0,0.42382]
[1731216189640,0.01892001,79380.0,79376.0,0.06302]
[1731216190042,0.39688001,79377.0,79376.0,0.06302]
[1731216190243,0.03191317,79388.0,79376.0,0.42382]
[1731216190542,0.01892001,79388.0,79385.0,0.06302]
[1731216190935,0.3608,79386.0,79385.0,0.06302]
[1731216191335,0.3608,79386.0,79374.0,0.06302]
[1731216191738,0.32298,79386.0,79374.0,0.06302]
[1731216192245,0.01892001,79388.0,79378.0,0.06302]
[1731216192443,0.01892001,79388.0,79377.0,0.3608]
[1731216192649,0.01892001,79388.0,79378.0,0.06302]
[1731216192943,0.01892001,79388.0,79387.0,0.42382]
[1731216193439,0.3608,79410.0,79387.0,0.42382]
[1731216193440,0.01892001,79401.0,79387.0,0.42382]
[1731216193647,0.01892001,79401.0,79398.0,0.06302]
[1731216196539,0.01892001,79401.0,79398.0,0.07562065]
[1731216197439,0.01892001,79408.0,79398.0,0.07562065]
[1731216197639,0.01892001,79400.0,79398.0,0.07562065]
[1731216198641,0.01892001,79402.0,79398.0,0.07562065]
[1731216198848,0.01892001,79408.0,79398.0,0.07562065]
[1731216199039,0.01892001,79408.0,79406.0,0.06302]
[1731216199839,0.01892001,79408.0,79406.0,0.0756175]
[1731216200441,0.3608,79407.0,79406.0,0.0756175]
[1731216201648,0.7386,79407.0,79398.0,0.06302]
[1731216201852,0.9717,79406.0,79398.0,0.06302]
[1731216202144,1.3325,79406.0,79398.0,0.06302]
[1731216202352,1.0031,79406.0,79398.0,0.06302]
[1731216204653,0.6845,79406.0,79398.0,0.06302]
[1731216204850,0.3608,79406.0,79398.0,0.06302]
[1731216205146,0.01892001,79408.0,79406.0,0.06302]
[1731216206044,0.01892001,79408.0,79399.0,0.06302]
[1731216206244,0.01892001,79408.0,79405.0,0.06302]
[1731216206744,0.34378955,79421.0,79405.0,0.06302]
[1731216206940,0.36270956,79421.0,79407.0,0.03781]
[1731216207453,0.36270956,79421.0,79407.0,0.03782]
[1731216207651,0.36270956,79421.0,79406.0,0.3193]
[1731216207951,0.36270956,79421.0,79406.0,0.2689]
[1731216208444,0.36270956,79421.0,79407.0,0.06302]
[1731216217360,0.34378955,79421.0,79407.0,0.06302]
[1731216217658,0.01892001,79420.0,79407.0,0.06302]
[1731216219360,0.3608,79408.0,79407.0,0.06302]
[1731216219956,0.01892001,79420.0,79407.0,0.06302]
[1731216220151,0.01892001,79420.0,79419.0,0.42382]
[1731216221761,0.29960001,79425.0,79419.0,0.42382]
[1731216221964,0.01892001,79432.0,79423.0,0.06302]
[1731216223559,0.01892001,79432.0,79423.0,0.0757162]
[1731216225062,0.311,79431.0,79423.0,0.0757162]
[1731216227560,0.311,79431.0,79423.0,0.0126962]
[1731216227864,0.311,79431.0,79423.0,0.06302]
[1731216230666,0.311,79431.0,79424.0,0.06302]
[1731216230667,0.73852,79427.0,79424.0,0.06302]
[1731216230868,0.9858,79427.0,79424.0,0.06302]
[1731216231166,0.37772,79426.0,79424.0,0.06302]
[1731216231363,0.37772,79425.0,79424.0,0.06302]
[1731216231567,0.98736001,79427.0,79424.0,0.06302]
[1731216231568,0.37772,79426.0,79424.0,0.06302]
[1731216231763,0.3608,79425.0,79424.0,0.06302]
[1731216231963,0.73852,79425.0,79407.0,0.00188902]
[1731216232168,0.3608,79408.0,79407.0,0.00188902]
[1731216232367,0.36236001,79425.0,79407.0,0.00188902]
[1731216232675,0.3608,79412.0,79407.0,0.00188902]
[1731216232861,0.3608,79412.0,79407.0,0.07792783]
[1731216233058,0.3608,79425.0,79407.0,0.06490902]
[1731216233561,0.3608,79416.0,79407.0,0.06490902]
[1731216233761,0.3608,79416.0,79407.0,0.00188902]
[1731216233966,0.3608,79425.0,79413.0,0.3608]
[1731216234167,0.3608,79416.0,79407.0,0.00188902]
[1731216234665,0.3608,79425.0,79407.0,0.00188902]
[1731216234858,0.3608,79417.0,79407.0,0.00188902]
[1731216235364,0.3608,79418.0,79407.0,0.00188902]
[1731216236264,0.3608,79425.0,79408.0,0.3608]
[1731216237369,0.32298,79416.0,79409.0,0.06302]
[1731216237564,0.32298,79416.0,79409.0,0.03782]
[1731216237875,0.01892001,79424.0,79409.0,0.03782]
[1731216238059,0.01892001,79424.0,79400.0,0.36095302]
[1731216238060,0.3608,79416.0,79402.0,0.03782]
[1731216238259,0.01892001,79424.0,79408.0,0.01262]
[1731216243070,0.01892001,79424.0,79418.0,0.01262]
[1731216243372,0.01892001,79424.0,79423.0,0.37342]
[1731216243669,0.01892001,79445.0,79423.0,0.62407564]
[1731216243892,0.01892001,79445.0,79442.0,0.01262]
[1731216244973,0.01892001,79445.0,79435.0,0.01262]
[1731216246267,0.37764,79444.0,79435.0,0.01262]
[1731216246470,0.3,79444.0,79424.0,0.01262]
[1731216246676,0.75736001,79445.0,79424.0,0.01262]
[1731216246677,0.3608,79436.0,79424.0,0.01262]
[1731216246864,0.37972001,79445.0,79424.0,0.01262]
[1731216247070,0.38120001,79445.0,79426.0,0.01262]
[1731216247270,0.37972001,79445.0,79432.0,0.01262]
[1731216247466,0.37972001,79445.0,79431.0,0.3608]
[1731216247868,0.00010733,79444.0,79439.0,0.3608]
[1731216248078,0.01888,79452.0,79439.0,0.3608]
[1731216248476,0.01888,79452.0,79448.0,0.3608]
[1731216249275,0.3776,79451.0,79448.0,0.3608]
[1731216249676,0.3776,79450.0,79448.0,0.3608]
[1731216249879,0.3776,79451.0,79448.0,0.3608]
[1731216250077,4.569e-05,79450.0,79448.0,0.3608]
[1731216250275,0.06947827,79449.0,79448.0,0.3608]
[1731216250470,0.44707827,79449.0,79448.0,0.3608]
[1731216250674,4.569e-05,79450.0,79448.0,0.3608]
[1731216251271,0.03083163,79449.0,79448.0,0.3608]
[1731216251679,4.569e-05,79450.0,79448.0,0.3608]
[1731216257484,0.01892569,79450.0,79448.0,0.3608]
[1731216257679,0.01892569,79450.0,79449.0,0.03782]
[1731216258580,0.39652569,79450.0,79449.0,0.03782]
[1731216259085,0.01892569,79450.0,79449.0,0.03782]
[1731216260293,0.39652569,79450.0,79449.0,0.03782]
[1731216261084,0.01892569,79450.0,79449.0,0.03782]
[1731216263392,0.01888,79468.0,79449.0,0.66607564]
[1731216263591,0.01888,79468.0,79466.0,0.3608]
[1731216265086,0.37752,79467.0,79466.0,0.3608]
[1731216265395,0.01888,79468.0,79466.0,0.3608]
[1731216266279,0.01888,79468.0,79450.0,0.00188765]
[1731216266280,0.37752,79467.0,79450.0,0.00188765]
[1731216266487,0.3608,79462.0,79450.0,0.00188765]
[1731216266781,0.3608,79462.0,79451.0,0.01262]
[1731216267181,0.6308,79461.0,79451.0,0.01262]
[1731216267387,0.6308,79461.0,79448.0,0.32490765]
[1731216267684,0.59298,79461.0,79448.0,0.29970765]
[1731216267886,0.01888,79468.0,79448.0,0.28716289]
[1731216268192,0.01888,79468.0,79448.0,0.23676289]
[1731216268485,0.3608,79461.0,79448.0,0.23676289]
[1731216269491,0.25065564,79454.0,79449.0,0.06302]
[1731216271288,0.5477,79459.0,79449.0,0.06302]
[1731216272387,0.3311,79459.0,79449.0,0.06302]
[1731216272895,0.3608,79450.0,79435.0,0.06302]
[1731216273088,0.7216,79436.0,79435.0,0.06302]
[1731216273401,0.97685577,79436.0,79435.0,0.06302]
[1731216273601,1.3545376,79436.0,79435.0,0.06302]
[1731216273906,1.31588,79436.0,79418.0,0.06315367]
[1731216274095,0.3608,79419.0,79418.0,0.06315367]
[1731216275491,0.37972001,79419.0,79418.0,0.06315367]
[1731216275690,0.01892001,79419.0,79418.0,0.06315367]
[1731216275993,0.37972001,79419.0,79418.0,0.06315367]
[1731216276198,0.01892001,79419.0,79418.0,0.06315367]
[1731216277287,0.3608,79423.0,79418.0,0.06315367]
[1731216277492,0.01892001,79419.0,79418.0,0.06315367]
[1731216278699,0.01892001,79419.0,79390.0,0.3608]
[1731216278700,0.26957565,79419.0,79390.0,0.3608]
[1731216279000,0.3608,79403.0,79395.0,0.3168]
[1731216279203,0.3608,79403.0,79392.0,0.00064]
[1731216279501,0.3608,79403.0,79390.0,0.3608]
[1731216279502,0.3608,79393.0,79376.0,0.3133]
[1731216279702,0.3608,79384.0,79376.0,0.3133]
[1731216280394,0.3608,79384.0,79370.0,0.00015641]
[1731216280395,0.3608,79377.0,79370.0,0.00015641]
[1731216280994,0.3608,79375.0,79370.0,0.00015641]
[1731216281902,0.32298,79375.0,79370.0,0.00015641]
[1731216282400,0.00148,79399.0,79370.0,0.00015641]
[1731216282401,0.01892001,79386.0,79374.0,0.37796]
[1731216282705,0.01892001,79386.0,79385.0,0.3608]
[1731216283201,0.00189041,79400.0,79385.0,0.73872]
[1731216283498,0.00189041,79400.0,79386.0,1.26293564]
[1731216283688,0.00189041,79400.0,79393.0,0.3608]
[1731216284094,0.01892001,79410.0,79395.0,0.61145564]
[1731216284295,0.01892001,79410.0,79405.0,0.3608]
[1731216284604,0.01892001,79410.0,79406.0,0.6344]
[1731216287790,0.01892001,79410.0,79406.0,0.69742]
[1731216287995,0.01892001,79410.0,79406.0,0.6344]
[1731216288500,0.01892001,79410.0,79407.0,0.06302]
[1731216289503,0.01892001,79410.0,79406.0,0.30654]
[1731216289697,0.3608,79407.0,79406.0,0.3059]
[1731216289899,0.3608,79407.0,79397.0,0.3258]
[1731216290596,0.3608,79407.0,79397.0,0.38882]
[1731216292093,0.01892001,79410.0,79397.0,0.38882]
[1731216292293,0.3608,79409.0,79397.0,0.38882]
[1731216292802,0.3608,79409.0,79397.0,0.40461171]
[1731216293000,0.3608,79409.0,79397.0,0.34159171]
[1731216293802,0.01892001,79410.0,79397.0,0.34159171]
[1731216297305,0.01620469,79418.0,79397.0,0.34159171]
[1731216297507,0.01892001,79416.0,79398.0,0.06302]
[1731216298605,0.01892001,79416.0,79408.0,0.06302]
[1731216298805,0.01892001,79416.0,79410.0,0.06302]
[1731216301006,0.01892001,79424.0,79415.0,0.42382]
[1731216301207,0.00188928,79426.0,79422.0,0.3608]
[1731216301900,0.01892001,79433.0,79422.0,0.3608]
[1731216302512,0.3608,79438.0,79422.0,0.3356]
[1731216302709,0.01892001,79433.0,79423.0,0.06302]
[1731216302911,0.01892001,79433.0,79423.0,0.03782]
[1731216303211,0.01892001,79433.0,79416.0,0.30760063]
[1731216303212,0.3608,79424.0,79416.0,0.30760063]
[1731216303510,0.34190001,79423.0,79416.0,0.28240063]
[1731216303710,0.3608,79420.0,79417.0,0.03782]
[1731216304109,0.3608,79420.0,79416.0,0.24778821]
[1731216304305,0.3608,79420.0,79416.0,0.19738821]
[1731216304507,0.3608,79423.0,79416.0,0.19738821]
[1731216304708,0.3608,79423.0,79417.0,0.03782]
[1731216305212,1.00874903,79432.0,79417.0,0.03782]
[1731216305402,0.3608,79423.0,79417.0,0.03782]
[1731216306205,0.3608,79430.0,79417.0,0.03782]
[1731216306613,0.21512,79431.0,79417.0,0.03782]
[1731216306804,1.00874903,79432.0,79417.0,0.03782]
[1731216307504,0.01892001,79433.0,79425.0,0.01262]
[1731216307803,0.01892001,79433.0,79427.0,0.01262]
[1731216308914,0.37972001,79433.0,79427.0,0.01262]
[1731216309112,0.37972001,79433.0,79422.0,0.01262]
[1731216309509,0.01892001,79433.0,79429.0,0.01262]
[1731216310112,0.01892001,79433.0,79431.0,0.01262]
[1731216310304,0.01892001,79433.0,79432.0,0.31402]
[1731216311705,0.01892001,79433.0,79431.0,0.01262]
[1731216311907,2.002e-05,79439.0,79431.0,0.06302]
[1731216312311,2.002e-05,79439.0,79431.0,0.03782]
[1731216312511,2.002e-05,79439.0,79430.0,0.34821]
[1731216312914,2.002e-05,79439.0,79431.0,0.06302]
[1731216314011,0.3608,79432.0,79431.0,0.06302]
[1731216315014,0.73848,79432.0,79413.0,0.06302]
[1731216315213,0.3608,79420.0,79413.0,0.06302]
[1731216316611,0.3608,79420.0,79409.0,0.06302]
[1731216316808,0.3608,79420.0,79412.0,0.06302]
[1731216317108,0.3608,79413.0,79412.0,0.06302]
[1731216317508,0.3608,79420.0,79412.0,0.06302]
[1731216317711,0.3608,79420.0,79408.0,0.06302]
[1731216318716,0.3608,79420.0,79409.0,0.06302]
[1731216318928,0.3608,79413.0,79409.0,0.06302]
[1731216319928,0.3608,79413.0,79410.0,0.06302]
[1731216320221,0.3608,79420.0,79410.0,0.06302]
[1731216320822,0.3608,79420.0,79408.0,0.06302]
[1731216321220,0.3608,79413.0,79408.0,0.06302]
[1731216321813,0.3608,79413.0,79405.0,0.06302]
[1731216323511,0.3608,79420.0,79405.0,0.06302]
[1731216323711,0.3608,79420.0,79412.0,0.25065564]
[1731216323935,0.3608,79420.0,79413.0,0.37192]
[1731216324113,0.01892001,79421.0,79413.0,0.74968]
[1731216324314,0.36268887,79449.0,79420.0,0.06302]
[1731216324517,0.01892001,79448.0,79432.0,0.06302]
[1731216324721,0.04412756,79448.0,79434.0,0.06302]
[1731216325314,0.3608,79442.0,79434.0,0.06302]
[1731216326525,0.3608,79442.0,79432.0,0.06302]
[1731216326723,0.32298,79435.0,79432.0,0.06302]
[1731216326932,0.32298,79435.0,79432.0,0.03781]
[1731216327829,0.6407,79434.0,79432.0,0.03781]
[1731216329119,0.13824842,79472.0,79434.0,0.0126]
[1731216329323,0.3608,79466.0,79455.0,0.3608]
[1731216329513,0.01892001,79463.0,79455.0,0.3608]
[1731216330713,0.01892001,79463.0,79455.0,1.0121]
[1731216330913,0.01892001,79463.0,79455.0,1.3205]
[1731216331322,0.01892001,79463.0,79455.0,1.33695421]
[1731216331518,0.01892001,79463.0,79462.0,0.3608]
[1731216333020,0.01892001,79463.0,79458.0,0.25065564]
[1731216334123,0.01892001,79463.0,79462.0,0.3608]
[1731216334319,0.01888,79470.0,79462.0,0.3608]
[1731216334521,0.38820556,79500.0,79469.0,0.3608]
[1731216334730,0.38820556,79500.0,79485.0,0.25065564]
[1731216334731,0.01888,79492.0,79485.0,0.25065564]
[1731216334925,0.01888,79492.0,79483.0,0.3023]
[1731216335920,0.01888,79492.0,79483.0,0.31528157]
[1731216337533,0.01888,79491.0,79483.0,0.31528157]
[1731216339133,0.01888,79491.0,79485.0,0.02518256]
[1731216340847,0.01888,79490.0,79485.0,0.02518256]
[1731216341239,0.3608,79495.0,79485.0,0.02518256]
[1731216342344,0.3608,79495.0,79486.0,0.06302]
[1731216342641,0.36932556,79500.0,79490.0,0.3774]
[1731216342842,0.36932556,79500.0,79498.0,0.61145564]
[1731216343046,0.36932556,79500.0,79499.0,0.93606]
[1731216343345,0.01888,79519.0,79499.0,1.41213503]
[1731216343551,0.3211,79536.0,79499.0,1.41213503]
[1731216343552,0.3548,79543.0,79518.0,0.25065564]
[1731216343843,0.3608,79582.0,79543.0,0.03782]
[1731216344047,0.01888,79577.0,79565.0,0.01262]
[1731216344267,0.3608,79566.0,79565.0,0.01262]
[1731216345139,0.73784,79566.0,79543.0,0.01262]
[1731216345345,0.3608,79553.0,79551.0,0.01262]
[1731216345643,0.3608,79556.0,79551.0,0.01262]
[1731216345839,0.3608,79576.0,79555.0,0.3608]
[1731216346041,0.3608,79576.0,79564.0,0.01262]
[1731216347045,0.3608,79576.0,79563.0,0.01262]
[1731216347442,0.3608,79576.0,79564.0,0.81740611]
[1731216347640,0.3608,79576.0,79569.0,0.3608]
[1731216348046,0.3608,79576.0,79570.0,0.377]
[1731216348343,0.3608,79576.0,79571.0,0.377]
[1731216348647,0.3608,79576.0,79569.0,0.3608]
[1731216349351,0.3608,79576.0,79565.0,0.01262]
[1731216349548,0.3608,79569.0,79565.0,0.01262]
[1731216349750,0.3608,79569.0,79566.0,0.01262]
[1731216349947,0.3608,79576.0,79569.0,0.01262]
[1731216350151,0.3608,79576.0,79569.0,0.37342]
[1731216350546,0.3608,79576.0,79569.0,0.37318]
[1731216351638,0.31405486,79576.0,79569.0,0.37318]
[1731216352043,0.3608,79588.0,79569.0,0.37318]
[1731216352243,0.3608,79588.0,79576.0,0.37294]
[1731216352443,0.3608,79588.0,79576.0,0.3608]
[1731216353149,0.3608,79588.0,79576.0,0.4236]
[1731216354151,0.3608,79588.0,79577.0,0.18891441]
[1731216354648,0.3608,79588.0,79577.0,0.18943265]
[1731216354850,0.3608,79588.0,79577.0,0.86639265]
[1731216355044,0.3608,79588.0,79578.0,0.37696]
[1731216355241,0.37968,79597.0,79587.0,0.3608]
[1731216355648,0.3608,79597.0,79587.0,0.3608]
[1731216356050,0.3608,79597.0,79587.0,0.6608]
[1731216356354,0.3608,79597.0,79588.0,0.18807168]
[1731216356544,0.3608,79590.0,79576.0,0.4236]
[1731216356753,0.3608,79597.0,79576.0,0.4236]
[1731216357048,0.3608,79597.0,79576.0,0.73664183]
[1731216357352,0.34194,79597.0,79576.0,0.43664183]
[1731216357654,0.01888,79596.0,79576.0,0.43664183]
[1731216358245,0.01888,79596.0,79576.0,0.4236]
[1731216358545,0.00151191,79586.0,79576.0,0.4236]
[1731216359447,0.00151191,79581.0,79576.0,0.4236]
[1731216359956,0.00147191,79581.0,79576.0,0.4236]
[1731216360546,0.00147191,79579.0,79576.0,0.4368836]
[1731216360755,0.00147191,79579.0,79578.0,0.0628]
[1731216361147,0.00147191,79579.0,79578.0,0.4398]
[1731216361544,0.01888,79596.0,79578.0,0.7398]
[1731216361753,0.01888,79596.0,79589.0,0.3608]
[1731216362146,0.01888,79596.0,79589.0,0.3606]
[1731216362351,0.01888,79596.0,79590.0,0.0628]
[1731216362552,0.01888,79596.0,79590.0,0.03765]
[1731216363955,0.01579625,79595.0,79590.0,0.03765]
[1731216364156,0.01579584,79594.0,79590.0,0.03765]
[1731216364371,0.36267117,79596.0,79590.0,0.03765]
[1731216364658,1.40039117,79596.0,79576.0,0.3608]
[1731216364852,0.25065564,79584.0,79576.0,0.3608]
[1731216365052,0.3608,79578.0,79567.0,0.3608]
[1731216365253,0.25065564,79584.0,79567.0,0.3608]
[1731216365549,0.3608,79572.0,79564.0,0.00011394]
[1731216366455,0.25065564,79574.0,79564.0,0.00011394]
[1731216366456,0.3608,79576.0,79564.0,0.00011394]
[1731216366851,0.3608,79579.0,79567.0,0.3608]
[1731216367453,0.3608,79579.0,79568.0,0.0628]
[1731216367856,0.3608,79579.0,79567.0,0.3608]
[1731216367857,0.3231,79583.0,79578.0,0.0628]
[1731216368158,0.3608,79579.0,79564.0,0.00011394]
[1731216368356,0.3608,79579.0,79546.0,0.3608]
[1731216368357,0.61145564,79565.0,79546.0,0.3608]
[1731216368752,0.91145564,79565.0,79546.0,0.3608]
[1731216368952,0.61145564,79565.0,79546.0,0.3608]
[1731216369156,0.91145564,79565.0,79546.0,0.3608]
[1731216369352,0.25065564,79552.0,79537.0,0.00308]
[1731216369671,0.25065564,79542.0,79537.0,0.00308]
[1731216369963,0.25065564,79542.0,79519.0,0.4236]
[1731216370155,0.61145564,79532.0,79519.0,0.3608]
[1731216370567,0.25065564,79558.0,79531.0,0.3608]
[1731216370753,0.25065564,79558.0,79553.0,0.3608]
[1731216371067,0.3608,79554.0,79544.0,0.3608]
[1731216371255,0.25065564,79548.0,79544.0,0.3608]
[1731216371565,0.25065564,79548.0,79520.0,0.0628]
[1731216371566,0.3608,79545.0,79520.0,0.0628]
[1731216371757,0.3608,79532.0,79520.0,0.0628]
[1731216372258,0.01595982,79531.0,79520.0,0.0628]
[1731216372458,0.01595982,79530.0,79519.0,0.3608]
[1731216372665,0.01595982,79529.0,79519.0,0.3608]
[1731216372860,0.01595982,79528.0,79519.0,0.3608]
[1731216373053,0.25065564,79538.0,79519.0,0.3608]
[1731216373054,0.01595982,79527.0,79519.0,0.3608]
[1731216373255,0.01595982,79526.0,79519.0,0.3608]
[1731216373459,0.01595982,79525.0,79519.0,0.3608]
[1731216373659,0.00010557,79524.0,79519.0,0.3608]
[1731216373864,0.00010557,79524.0,79518.0,0.36095662]
[1731216374259,0.00010557,79524.0,79518.0,0.00015662]
[1731216374459,0.00010557,79524.0,79518.0,0.36095662]
[1731216374859,0.00010557,79524.0,79518.0,0.00015662]
[1731216375064,0.36090557,79524.0,79518.0,0.00015662]
[1731216376365,0.01888,79523.0,79518.0,0.00015662]
[1731216376567,0.39612,79523.0,79518.0,0.00015662]
[1731216376868,0.37728,79522.0,79518.0,0.00015662]
[1731216377165,0.01888,79523.0,79512.0,0.00184336]
[1731216377367,0.01888,79522.0,79512.0,0.00184336]
[1731216377565,0.01888,79522.0,79510.0,0.3608]
[1731216378164,0.3608,79514.0,79494.0,0.00188686]
[1731216379467,0.6608,79514.0,79494.0,0.00188686]
[1731216379673,0.67379722,79514.0,79494.0,0.00188686]
[1731216380067,0.67379722,79514.0,79496.0,0.3608]
[1731216380266,0.37379722,79514.0,79496.0,0.3608]
[1731216381168,0.3608,79502.0,79490.0,0.01345461]
[1731216381477,0.3608,79502.0,79489.0,9.12e-05]
[1731216382269,0.3608,79502.0,79489.0,0.01325196]
[1731216382478,0.3608,79502.0,79489.0,0.0628]
[1731216382667,0.32306,79502.0,79489.0,0.05898222]
[1731216382868,0.32306,79502.0,79488.0,0.34508418]
[1731216383069,0.37379722,79514.0,79501.0,0.3608]
[1731216383876,0.3608,79514.0,79501.0,0.3608]
[1731216384671,0.00188748,79518.0,79511.0,0.3608]
[1731216384871,0.25065564,79516.0,79501.0,0.3608]
[1731216385074,0.3608,79517.0,79501.0,0.3608]
[1731216385273,0.00188748,79518.0,79501.0,0.3608]
[1731216385776,0.00188748,79518.0,79501.0,0.37427393]
[1731216385979,0.00188748,79518.0,79508.0,0.3608]
[1731216386872,0.00188748,79518.0,79515.0,0.3608]
[1731216387075,0.00188748,79518.0,79508.0,0.3608]
[1731216387271,0.00184748,79518.0,79508.0,0.3608]
[1731216387473,0.00184748,79518.0,79509.0,0.0628]
[1731216387981,0.00184748,79518.0,79515.0,0.3608]
[1731216389274,0.01888,79522.0,79515.0,0.3608]
[1731216389473,0.01888,79531.0,79520.0,0.25065564]
[1731216389783,0.01888,79532.0,79530.0,0.3608]
[1731216390483,0.00015137,79531.0,79530.0,0.3608]
[1731216391281,0.00015137,79531.0,79530.0,0.37401466]
[1731216391483,0.01888,79540.0,79530.0,0.37401466]
[1731216391669,0.0049,79540.0,79531.0,0.3772]
[1731216391873,0.00680665,79550.0,79539.0,0.3733]
[1731216392075,0.00680665,79550.0,79539.0,0.33066556]
[1731216392477,0.00012098,79549.0,79539.0,0.30545951]
[1731216393076,0.00012098,79549.0,79548.0,0.0628]
[1731216393673,0.00012098,79549.0,79548.0,0.03534974]
[1731216393981,0.62789662,79549.0,79530.0,0.01321466]
[1731216394279,0.00012098,79549.0,79540.0,0.3608]
[1731216394885,0.01603571,79548.0,79540.0,0.3608]
[1731216395086,0.3608,79545.0,79524.0,0.3329]
[1731216395379,0.01603571,79544.0,79530.0,0.3608]
[1731216395584,0.01603571,79544.0,79530.0,0.33568]
[1731216396374,0.31603571,79544.0,79530.0,0.33568]
[1731216396573,0.01603571,79543.0,79530.0,0.33568]
[1731216396776,0.3608,79545.0,79530.0,0.33568]
[1731216396977,0.37694457,79545.0,79530.0,0.33568]
[1731216397583,0.01888,79544.0,79530.0,0.33568]
[1731216398382,0.3608,79538.0,79525.0,0.3608]
[1731216398783,0.01771145,79537.0,79525.0,0.3608]
[1731216398984,0.3608,79538.0,79526.0,0.0628]
[1731216398985,0.01771145,79536.0,79526.0,0.0628]
[1731216399182,0.01771145,79535.0,79526.0,0.0628]
[1731216399480,0.01771145,79534.0,79526.0,0.0628]
[1731216399685,0.01771145,79533.0,79526.0,0.0628]
[1731216399881,0.01771145,79532.0,79526.0,0.0628]
[1731216400082,0.01771145,79531.0,79526.0,0.0628]
[1731216400282,0.01771145,79530.0,79526.0,0.0628]
[1731216400483,0.01771145,79529.0,79526.0,0.0628]
[1731216400678,0.3608,79538.0,79526.0,0.0628]
[1731216402384,0.25065564,79541.0,79533.0,0.3608]
[1731216402694,0.25065564,79541.0,79526.0,0.0628]
[1731216403787,0.01888,79544.0,79526.0,0.0628]
[1731216404286,0.01888,79544.0,79540.0,0.3608]
[1731216404592,0.01888,79552.0,79542.0,0.3608]
[1731216405286,0.01888,79552.0,79548.0,0.3608]
[1731216407081,0.01888,79560.0,79548.0,0.3608]
[1731216407689,0.01888,79560.0,79541.0,0.3298069]
[1731216407887,0.01888,79560.0,79548.0,0.3608]
[1731216408798,0.00188618,79564.0,79548.0,1.03792]
[1731216408997,0.01888,79571.0,79563.0,0.3608]
[1731216409189,0.01888,79570.0,79563.0,0.3608]
[1731216409392,0.36268523,79587.0,79569.0,0.37704]
[1731216409586,0.01888,79586.0,79577.0,0.3608]
[1731216409793,0.00010985,79585.0,79577.0,0.3608]
[1731216411401,0.01888,79595.0,79584.0,0.3608]
[1731216412489,0.03888,79600.0,79584.0,0.3608]
[1731216412799,0.03888,79600.0,79584.0,0.6608]
[1731216412800,0.02,79600.0,79584.0,0.6608]
[1731216413198,0.02,79600.0,79584.0,0.3608]
[1731216413397,0.02,79600.0,79584.0,0.38596075]
[1731216413899,0.02,79600.0,79585.0,0.1886198]
[1731216414100,0.02,79600.0,79594.0,9.092e-05]
[1731216415798,0.02,79600.0,79594.0,0.01672984]
[1731216416401,0.25065564,79595.0,79594.0,9.092e-05]
[1731216416799,0.72316001,79599.0,79594.0,9.092e-05]
[1731216416992,4e-05,79598.0,79594.0,5.092e-05]
[1731216417408,0.68542,79599.0,79588.0,0.03765]
[1731216417712,0.01888,79598.0,79587.0,0.28240092]
[1731216417998,0.68538,79599.0,79587.0,0.25725092]
[1731216418201,0.6839,79599.0,79587.0,0.25725092]
[1731216418395,0.6839,79599.0,79590.0,9.818e-05]
[1731216418596,0.6839,79599.0,79588.0,0.0628]
[1731216418799,0.6839,79599.0,79588.0,0.03765]
[1731216418995,0.6839,79599.0,79590.0,0.0125]
[1731216419205,0.6839,79599.0,79589.0,0.2527]
[1731216419500,0.00014067,79598.0,79589.0,0.2527]
[1731216419904,0.00014067,79598.0,79590.0,0.0628]
[1731216420207,0.00014067,79598.0,79590.0,0.08795723]
[1731216421299,0.25065564,79594.0,79588.0,0.0628]
[1731216421699,0.00014067,79598.0,79588.0,0.0628]
[1731216423195,0.00014067,79598.0,79589.0,0.0628]
[1731216424204,0.00014067,79598.0,79590.0,0.0628]
[1731216425109,0.00014067,79598.0,79592.0,0.0628]
[1731216425908,0.00014067,79598.0,79594.0,0.0628]
[1731216426401,0.00014067,79598.0,79594.0,0.43972]
[1731216426911,0.00014067,79598.0,79596.0,0.0628]
[1731216427700,0.00014067,79598.0,79594.0,0.0628]
[1731216428906,0.00014067,79598.0,79587.0,0.0628]
[1731216429305,0.00014067,79598.0,79585.0,0.3608]
[1731216429306,0.00014067,79598.0,79592.0,0.0628]
[1731216429710,0.00014067,79598.0,79594.0,0.0628]
[1731216430216,0.00014067,79598.0,79596.0,0.0628]
[1731216430607,0.00014067,79598.0,79597.0,0.43968]